fUST/lending_fUST_20250819
["ID","MTS","AMOUNT","RATE_DAILY","PERIOD"]
[380143741,1755573050071,-455.408369,0.00020208,2]
[380143742,1755573050080,-458.534596,0.00020208,2]
[380143743,1755573050090,-151.0,0.00020208,2]
[380143744,1755573050100,-806.53332421,0.00020228,2]
[380143745,1755573050109,-800.0,0.00020241,2]
[380143746,1755573050118,-517.27241495,0.00020268,2]
[380143747,1755573050127,-800.0,0.00020269,2]
[380143748,1755573050136,-783.2,0.00020272,2]
[380143749,1755573050144,-480.0,0.00020273,2]
[380143750,1755573050154,-151.0,0.00020273,2]
[380143751,1755573050164,-480.0,0.00020273,2]
[380143752,1755573050173,-480.0,0.00020273,2]
[380143753,1755573050182,-563.96115341,0.00020273,2]
[380143754,1755573050192,-480.0,0.00020273,2]
[380143755,1755573050202,-6716.15,0.00020273,2]
[380143756,1755573050211,-534.48,0.00020273,2]
[380143757,1755573050221,-1628.01,0.00020273,2]
[380143758,1755573050230,-151.0,0.00020273,2]
[380143759,1755573050239,-480.0,0.00020273,2]
[380143760,1755573050249,-164.930769,0.00020273,2]
[380143761,1755573050258,-164.930769,0.00020273,2]
[380143762,1755573050268,-480.0,0.00020273,2]
[380143763,1755573050279,-497.82017477,0.00020273,2]
[380143764,1755573050288,-517.72,0.00020273,2]
[380143765,1755573050298,-480.0,0.00020273,2]
[380143766,1755573050307,-151.0,0.00020273,2]
[380143767,1755573050316,-487.37441264,0.00020273,2]
[380143768,1755573050324,-151.0,0.00020273,2]
[380143770,1755573050333,-480.0,0.00020273,2]
[380143772,1755573050343,-707.0,0.00020273,2]
[380143774,1755573050352,-486.54167074,0.00020273,2]
[380143776,1755573050362,-151.0,0.00020273,2]
[380143778,1755573050375,-689.35,0.00020273,2]
[380143780,1755573050385,-480.0,0.00020273,2]
[380143782,1755573050395,-151.0,0.00020273,2]
[380143784,1755573050404,-265.10700677,0.00020273,2]
[380143786,1755573050415,-480.0,0.00020273,2]
[380143787,1755573050426,-527.39012482,0.00020273,2]
[380143788,1755573050435,-151.0,0.00020273,2]
[380143789,1755573050445,-151.0,0.00020273,2]
[380143790,1755573050455,-296.127191,0.00020273,2]
[380143791,1755573050464,-480.0,0.00020273,2]
[380143793,1755573050474,-480.0,0.00020273,2]
[380143795,1755573050483,-151.0,0.00020273,2]
[380143797,1755573050492,-2793.31,0.00020273,2]
[380143798,1755573050501,-480.0,0.00020273,2]
[380143800,1755573050511,-480.0,0.00020273,2]
[380143802,1755573050520,-151.0,0.00020273,2]
[380143804,1755573050529,-480.0,0.00020273,2]
[380143806,1755573050538,-480.0,0.00020273,2]
[380143807,1755573050547,-151.0,0.00020273,2]
[380143808,1755573050557,-480.0,0.00020273,2]
[380143809,1755573050566,-471.41990258,0.00020273,2]
[380143810,1755573050576,-719.59,0.00020273,2]
[380143811,1755573050585,-480.0,0.00020273,2]
[380143812,1755573050594,-151.0,0.00020273,2]
[380143813,1755573050605,-334.185117,0.00020273,2]
[380143814,1755573050616,-1120.53,0.00020273,2]
[380143815,1755573050625,-334.185117,0.00020273,2]
[380143816,1755573050635,-480.0,0.00020273,2]
[380143817,1755573050645,-562.43,0.00020273,2]
[380143818,1755573050655,-480.0,0.00020273,2]
[380143819,1755573050665,-151.0,0.00020273,2]
[380143820,1755573050674,-151.0,0.00020273,2]
[380143821,1755573050685,-480.0,0.00020273,2]
[380143822,1755573050695,-151.0,0.00020273,2]
[380143823,1755573050704,-480.0,0.00020273,2]
[380143824,1755573050713,-480.0,0.00020273,2]
[380143825,1755573050723,-480.0,0.00020273,2]
[380143826,1755573050940,-480.0,0.00020273,2]
[380143827,1755573050950,-480.0,0.00020273,2]
[380143828,1755573050960,-359.906206,0.00020273,2]
[380143829,1755573050969,-238.19586781,0.00020273,2]
[380143830,1755573050979,-359.906206,0.00020273,2]
[380143831,1755573050989,-480.0,0.00020273,2]
[380143832,1755573050998,-151.0,0.00020273,2]
[380143833,1755573051008,-480.0,0.00020273,2]
[380143834,1755573051017,-836.35,0.00020273,2]
[380143835,1755573051027,-480.0,0.00020273,2]
[380143836,1755573051108,-151.0,0.00020273,2]
[380143837,1755573051117,-167.480784,0.00020273,2]
[380143838,1755573051126,-151.0,0.00020273,2]
[380143839,1755573051136,-167.480784,0.00020273,2]
[380143840,1755573051145,-480.0,0.00020273,2]
[380143841,1755573051154,-237.5846028,0.00020273,2]
[380143842,1755573051164,-480.0,0.00020273,2]
[380143843,1755573051174,-2003.27,0.00020273,2]
[380143844,1755573051186,-480.0,0.00020273,2]
[380143845,1755573051196,-151.0,0.00020273,2]
[380143846,1755573051206,-509.81,0.00020273,2]
[380143847,1755573051216,-480.0,0.00020273,2]
[380143848,1755573051226,-853.16,0.00020273,2]
[380143849,1755573051235,-480.0,0.00020273,2]
[380143850,1755573051245,-480.0,0.00020273,2]
[380143851,1755573051255,-256.472762,0.00020273,2]
[380143852,1755573051264,-480.0,0.00020273,2]
[380143853,1755573051273,-1633.9,0.00020273,2]
[380143854,1755573051283,-965.84,0.00020273,2]
[380143855,1755573051292,-519.79,0.00020273,2]
[380143856,1755573051301,-1023.57,0.00020273,2]
[380143857,1755573051311,-580.30798132,0.00020273,2]
[380143858,1755573051459,-305.27256068,0.00020273,2]
[380143859,1755573051469,-885.580542,0.00020273,2]
[380143860,1755573051479,-151.0,0.00020273,2]
[380143861,1755573051488,-480.0,0.00020273,2]
[380143862,1755573051497,-480.0,0.00020273,2]
[380143863,1755573051506,-480.0,0.00020273,2]
[380143864,1755573051515,-151.0,0.00020273,2]
[380143865,1755573051526,-309.86719636,0.00020273,2]
[380143866,1755573051535,-151.0,0.00020273,2]
[380143867,1755573051544,-335.358325,0.00020273,2]
[380143868,1755573051554,-151.0,0.00020273,2]
[380143869,1755573051563,-593.14,0.00020273,2]
[380143870,1755573051572,-335.358325,0.00020273,2]
[380143871,1755573051581,-151.0,0.00020273,2]
[380143872,1755573051590,-663.13,0.00020273,2]
[380143873,1755573051599,-299.140091,0.00020273,2]
[380143874,1755573051609,-151.0,0.00020273,2]
[380143875,1755573051618,-480.0,0.00020273,2]
[380143876,1755573051626,-480.0,0.00020273,2]
[380143877,1755573051635,-151.0,0.00020273,2]
[380143878,1755573051644,-210.452597,0.00020273,2]
[380143879,1755573051654,-480.0,0.00020273,2]
[380143880,1755573051664,-675.11,0.00020273,2]
[380143881,1755573051673,-480.0,0.00020273,2]
[380143882,1755573051683,-151.0,0.00020273,2]
[380143883,1755573051693,-480.0,0.00020273,2]
[380143884,1755573051702,-394.59641165,0.00020273,2]
[380143885,1755573051711,-210.452597,0.00020273,2]
[380143886,1755573051720,-651.9,0.00020273,2]
[380143887,1755573051730,-151.0,0.00020273,2]
[380143888,1755573051741,-494.45,0.00020273,2]
[380143889,1755573051751,-487.57777105,0.00020273,2]
[380143890,1755573051760,-960.93,0.00020273,2]
[380143891,1755573051769,-151.0,0.00020273,2]
[380143892,1755573051778,-955.61,0.00020273,2]
[380143893,1755573051787,-480.0,0.00020273,2]
[380143894,1755573051799,-2155.72,0.00020273,2]
[380143895,1755573051808,-927.52,0.00020273,2]
[380143896,1755573051817,-480.0,0.00020273,2]
[380143897,1755573051827,-1426.67,0.00020273,2]
[380143898,1755573051836,-480.0,0.00020273,2]
[380143899,1755573051845,-582.03,0.00020273,2]
[380143900,1755573051854,-976.54,0.00020273,2]
[380143901,1755573051863,-712.04,0.00020273,2]
[380143902,1755573051873,-653.79,0.00020273,2]
[380143903,1755573051882,-480.0,0.00020273,2]
[380143904,1755573051891,-486.69222606,0.00020273,2]
[380143905,1755573051901,-1664.25,0.00020273,2]
[380143906,1755573051910,-5114.43,0.00020273,2]
[380143907,1755573051920,-1977.8,0.00020273,2]
[380143908,1755573051929,-1069.37,0.00020273,2]
[380143909,1755573051939,-1909.96,0.00020273,2]
[380143910,1755573051949,-3233.99,0.00020273,2]
[380143911,1755573051958,-480.0,0.00020273,2]
[380143912,1755573051967,-494.65,0.00020273,2]
[380143913,1755573051977,-480.0,0.00020273,2]
[380143914,1755573051987,-1626.15,0.00020273,2]
[380143915,1755573051999,-480.0,0.00020273,2]
[380143916,1755573052009,-480.0,0.00020273,2]
[380143917,1755573052019,-882.27,0.00020273,2]
[380143918,1755573052028,-480.0,0.00020273,2]
[380143919,1755573052037,-480.0,0.00020273,2]
[380143920,1755573052047,-540.86,0.00020273,2]
[380143921,1755573052056,-2411.02,0.00020273,2]
[380143922,1755573052065,-909.71,0.00020273,2]
[380143923,1755573052074,-383.77216219,0.00020273,2]
[380143924,1755573052084,-480.0,0.00020273,2]
[380143925,1755573052093,-480.0,0.00020273,2]
[380143926,1755573052102,-480.0,0.00020273,2]
[380143927,1755573052111,-559.74,0.00020273,2]
[380143928,1755573052121,-480.0,0.00020273,2]
[380143929,1755573052130,-480.0,0.00020273,2]
[380143930,1755573052139,-887.99,0.00020273,2]
[380143931,1755573052149,-480.0,0.00020273,2]
[380143932,1755573052158,-490.77561804,0.00020273,2]
[380143933,1755573052168,-575.58,0.00020273,2]
[380143934,1755573052178,-1987.21,0.00020273,2]
[380143935,1755573052187,-151.0,0.00020273,2]
[380143936,1755573052197,-1059.201726,0.00020273,2]
[380143937,1755573052206,-1059.201726,0.00020273,2]
[380143938,1755573052216,-6405.06,0.00020273,2]
[380143939,1755573052226,-151.0,0.00020273,2]
[380143940,1755573052235,-860.52,0.00020273,2]
[380143941,1755573052246,-810.59,0.00020273,2]
[380143942,1755573052330,-728.69,0.00020273,2]
[380143943,1755573052340,-690.18,0.00020273,2]
[380143944,1755573052349,-151.0,0.00020273,2]
[380143945,1755573052359,-1039.74,0.00020273,2]
[380143946,1755573052373,-480.0,0.00020273,2]
[380143947,1755573052393,-480.0,0.00020273,2]
[380143948,1755573052403,-2436.12,0.00020273,2]
[380143949,1755573052413,-151.0,0.00020273,2]
[380143950,1755573052422,-480.0,0.00020273,2]
[380143951,1755573052432,-941.31,0.00020273,2]
[380143952,1755573052443,-547.86,0.00020273,2]
[380143953,1755573052452,-151.0,0.00020273,2]
[380143954,1755573052461,-653.19,0.00020273,2]
[380143955,1755573052471,-2633.5,0.00020273,2]
[380143956,1755573052481,-712.5,0.00020273,2]
[380143957,1755573052490,-3869.68,0.00020273,2]
[380143958,1755573052499,-474.49621544,0.00020273,2]
[380143959,1755573052508,-480.0,0.00020273,2]
[380143960,1755573052517,-594.45534281,0.00020273,2]
[380143961,1755573052526,-480.0,0.00020273,2]
[380143962,1755573052537,-491.22,0.00020273,2]
[380143963,1755573052546,-151.0,0.00020273,2]
[380143964,1755573052556,-1131.68,0.00020273,2]
[380143965,1755573052566,-501.44878262,0.00020273,2]
[380143966,1755573052575,-292.40284289,0.00020274,2]
[380143967,1755573052584,-151.0,0.00020274,2]
[380143968,1755573052593,-151.0,0.00020274,2]
[380143969,1755573052603,-500.0,0.00020274,2]
[380143970,1755573052613,-151.0,0.00020274,2]
[380143971,1755573052622,-461.0,0.00020274,2]
[380143972,1755573052632,-500.0,0.00020274,2]
[380143973,1755573052642,-151.0,0.00020274,2]
[380143974,1755573052652,-561.11507356,0.00020274,2]
[380143975,1755573052661,-151.0,0.00020274,2]
[380143976,1755573052671,-151.0,0.00020274,2]
[380143977,1755573052681,-151.0,0.00020274,2]
[380143978,1755573052691,-151.0,0.00020274,2]
[380143979,1755573052704,-151.0,0.00020274,2]
[380143980,1755573052714,-151.0,0.00020274,2]
[380143981,1755573052723,-151.0,0.00020274,2]
[380143982,1755573052733,-151.0,0.00020274,2]
[380143983,1755573052742,-500.0,0.00020274,2]
[380143984,1755573052752,-156.65165441,0.00020274,2]
[380143985,1755573052762,-151.0,0.00020274,2]
[380143986,1755573052771,-500.0,0.00020274,2]
[380143987,1755573052988,-565.67227951,0.00020274,2]
[380143988,1755573052998,-151.0,0.000203,4]
[380143989,1755573053008,-560.18484352,0.00020313,2]
[380143990,1755573053017,-800.0,0.00020322,2]
[380143991,1755573053027,-800.0,0.00020338,2]
[380143992,1755573053037,-170.0,0.00020352,2]
[380143993,1755573053046,-168.0,0.00020398,2]
[380143994,1755573053055,-151.0,0.000204,4]
[380143995,1755573053065,-1000.0,0.000205,2]
[380143996,1755573053074,-783.2,0.00020546,2]
[380143997,1755573053084,-783.2,0.00020546,2]
[380143998,1755573053093,-783.2,0.00020546,2]
[380143999,1755573053103,-783.2,0.00020546,2]
[380144000,1755573053113,-500.0,0.00020547,2]
[380144001,1755573053123,-500.0,0.00020547,2]
[380144002,1755573053132,-500.0,0.00020547,2]
[380144003,1755573053141,-500.0,0.00020547,2]
[380144004,1755573053151,-500.0,0.00020547,2]
[380144005,1755573053161,-500.0,0.00020547,2]
[380144006,1755573053172,-282.75038961,0.00020547,2]
[380144007,1755573053181,-500.0,0.00020547,2]
[380144008,1755573053192,-500.0,0.00020547,2]
[380144009,1755573053201,-500.0,0.00020547,2]
[380144010,1755573053210,-500.0,0.00020547,2]
[380144011,1755573053220,-216.30903859,0.00020547,2]
[380144012,1755573053229,-480.0,0.00020547,2]
[380144013,1755573053239,-151.0,0.00020547,2]
[380144014,1755573053249,-480.0,0.00020547,2]
[380144015,1755573053259,-480.0,0.00020547,2]
[380144016,1755573053268,-480.0,0.00020547,2]
[380144017,1755573053278,-6716.15,0.00020547,2]
[380144018,1755573053287,-534.48,0.00020547,2]
[380144019,1755573053296,-1628.01,0.00020547,2]
[380144020,1755573053305,-151.0,0.00020547,2]
[380144021,1755573053315,-480.0,0.00020547,2]
[380144022,1755573053325,-164.930769,0.00020547,2]
[380144023,1755573053334,-164.930769,0.00020547,2]
[380144024,1755573053343,-480.0,0.00020547,2]
[380144025,1755573053352,-517.72,0.00020547,2]
[380144026,1755573053362,-480.0,0.00020547,2]
[380144027,1755573053373,-151.0,0.00020547,2]
[380144028,1755573053383,-480.0,0.00020547,2]
[380144029,1755573053393,-707.0,0.00020547,2]
[380144030,1755573053402,-689.35,0.00020547,2]
[380144031,1755573053412,-480.0,0.00020547,2]
[380144032,1755573053421,-202.417179,0.00020547,2]
[380144033,1755573053431,-480.0,0.00020547,2]
[380144034,1755573053440,-151.0,0.00020547,2]
[380144035,1755573053449,-151.0,0.00020547,2]
[380144036,1755573053459,-480.0,0.00020547,2]
[380144037,1755573053469,-480.0,0.00020547,2]
[380144038,1755573053478,-151.0,0.00020547,2]
[380144039,1755573053488,-189.02616,0.00020547,2]
[380144040,1755573053497,-2793.31,0.00020547,2]
[380144041,1755573053507,-480.0,0.00020547,2]
[380144042,1755573053516,-480.0,0.00020547,2]
[380144043,1755573053526,-480.0,0.00020547,2]
[380144044,1755573053535,-577.19510198,0.00020547,2]
[380144045,1755573053544,-719.59,0.00020547,2]
[380144046,1755573053554,-480.0,0.00020547,2]
[380144047,1755573053563,-151.0,0.00020547,2]
[380144048,1755573053573,-334.185117,0.00020547,2]
[380144049,1755573053583,-1120.53,0.00020547,2]
[380144050,1755573053593,-334.185117,0.00020547,2]
[380144051,1755573053602,-480.0,0.00020547,2]
[380144052,1755573053612,-562.43,0.00020547,2]
[380144053,1755573053621,-476.97606699,0.00020547,2]
[380144054,1755573053630,-151.0,0.00020547,2]
[380144055,1755573053640,-151.0,0.00020547,2]
[380144056,1755573053649,-480.0,0.00020547,2]
[380144057,1755573053658,-151.0,0.00020547,2]
[380144058,1755573053668,-480.0,0.00020547,2]
[380144059,1755573053678,-480.0,0.00020547,2]
[380144060,1755573053687,-480.0,0.00020547,2]
[380144061,1755573053698,-480.0,0.00020547,2]
[380144062,1755573053707,-480.0,0.00020547,2]
[380144063,1755573053717,-359.906206,0.00020547,2]
[380144064,1755573053727,-359.906206,0.00020547,2]
[380144065,1755573053737,-480.0,0.00020547,2]
[380144066,1755573053746,-151.0,0.00020547,2]
[380144067,1755573053756,-480.0,0.00020547,2]
[380144068,1755573053765,-836.35,0.00020547,2]
[380144069,1755573053842,-480.0,0.00020547,2]
[380144070,1755573053852,-151.0,0.00020547,2]
[380144071,1755573053861,-167.480784,0.00020547,2]
[380144072,1755573053872,-151.0,0.00020547,2]
[380144073,1755573053881,-167.480784,0.00020547,2]
[380144074,1755573053892,-310.44327403,0.00020547,2]
[380144075,1755573053901,-480.0,0.00020547,2]
[380144076,1755573053912,-480.0,0.00020547,2]
[380144077,1755573053921,-2003.27,0.00020547,2]
[380144078,1755573053930,-509.81,0.00020547,2]
[380144079,1755573053939,-151.0,0.00020547,2]
[380144080,1755573053949,-480.0,0.00020547,2]
[380144081,1755573053959,-853.16,0.00020547,2]
[380144082,1755573053968,-480.0,0.00020547,2]
[380144083,1755573053977,-480.0,0.00020547,2]
[380144084,1755573053987,-480.0,0.00020547,2]
[380144085,1755573053997,-1633.9,0.00020547,2]
[380144086,1755573054007,-965.84,0.00020547,2]
[380144087,1755573054015,-519.79,0.00020547,2]
[380144088,1755573054025,-1023.57,0.00020547,2]
[380144089,1755573054034,-885.580542,0.00020547,2]
[380144090,1755573054044,-885.580542,0.00020547,2]
[380144091,1755573054053,-151.0,0.00020547,2]
[380144092,1755573054064,-480.0,0.00020547,2]
[380144093,1755573054073,-480.0,0.00020547,2]
[380144094,1755573054083,-480.0,0.00020547,2]
[380144095,1755573054093,-151.0,0.00020547,2]
[380144096,1755573054103,-151.0,0.00020547,2]
[380144097,1755573054114,-335.358325,0.00020547,2]
[380144098,1755573054124,-151.0,0.00020547,2]
[380144099,1755573054133,-593.14,0.00020547,2]
[380144100,1755573054143,-335.358325,0.00020547,2]
[380144101,1755573054153,-151.0,0.00020547,2]
[380144102,1755573054162,-663.13,0.00020547,2]
[380144103,1755573054171,-151.0,0.00020547,2]
[380144104,1755573054181,-480.0,0.00020547,2]
[380144105,1755573054191,-480.0,0.00020547,2]
[380144106,1755573054201,-151.0,0.00020547,2]
[380144107,1755573054211,-210.452597,0.00020547,2]
[380144108,1755573054220,-480.0,0.00020547,2]
[380144109,1755573054230,-675.11,0.00020547,2]
[380144110,1755573054240,-384.36017235,0.00020547,2]
[380144111,1755573054250,-151.0,0.00020547,2]
[380144112,1755573054260,-480.0,0.00020547,2]
[380144113,1755573054269,-210.452597,0.00020547,2]
[380144114,1755573054279,-651.9,0.00020547,2]
[380144115,1755573054288,-151.0,0.00020547,2]
[380144116,1755573054299,-494.45,0.00020547,2]
[380144117,1755573054308,-960.93,0.00020547,2]
[380144118,1755573054317,-151.0,0.00020547,2]
[380144119,1755573054326,-955.61,0.00020547,2]
[380144120,1755573054336,-480.0,0.00020547,2]
[380144121,1755573054345,-2155.72,0.00020547,2]
[380144122,1755573054354,-927.52,0.00020547,2]
[380144123,1755573054364,-480.0,0.00020547,2]
[380144124,1755573054378,-1426.67,0.00020547,2]
[380144125,1755573054387,-151.0,0.00020547,2]
[380144126,1755573054396,-210.35737,0.00020547,2]
[380144127,1755573054405,-480.0,0.00020547,2]
[380144128,1755573054416,-151.0,0.00020547,2]
[380144129,1755573054426,-582.03,0.00020547,2]
[380144130,1755573054435,-976.54,0.00020547,2]
[380144131,1755573054446,-712.04,0.00020547,2]
[380144132,1755573054456,-653.79,0.00020547,2]
[380144133,1755573054465,-480.0,0.00020547,2]
[380144134,1755573054475,-1664.25,0.00020547,2]
[380144135,1755573054484,-532.395296,0.00020547,2]
[380144136,1755573054493,-5114.43,0.00020547,2]
[380144137,1755573054504,-532.395296,0.00020547,2]
[380144138,1755573054514,-1977.8,0.00020547,2]
[380144139,1755573054524,-151.0,0.00020547,2]
[380144140,1755573054533,-1069.37,0.00020547,2]
[380144141,1755573054543,-1909.96,0.00020547,2]
[380144142,1755573054553,-3233.99,0.00020547,2]
[380144143,1755573054563,-480.0,0.00020547,2]
[380144144,1755573054572,-494.65,0.00020547,2]
[380144145,1755573054581,-480.0,0.00020547,2]
[380144146,1755573054590,-1626.15,0.00020547,2]
[380144147,1755573054600,-151.0,0.00020547,2]
[380144148,1755573054610,-480.0,0.00020547,2]
[380144149,1755573054619,-882.27,0.00020547,2]
[380144150,1755573054628,-377.46051077,0.00020547,2]
[380144151,1755573054637,-480.0,0.00020547,2]
[380144152,1755573054647,-493.26935865,0.00020547,2]
[380144153,1755573054656,-540.86,0.00020547,2]
[380144154,1755573054666,-2411.02,0.00020547,2]
[380144155,1755573054675,-909.71,0.00020547,2]
[380144156,1755573054684,-480.0,0.00020547,2]
[380144157,1755573054694,-480.0,0.00020547,2]
[380144158,1755573054703,-151.0,0.00020547,2]
[380144159,1755573054713,-480.0,0.00020547,2]
[380144160,1755573054722,-559.74,0.00020547,2]
[380144161,1755573054731,-151.646839,0.00020547,2]
[380144162,1755573054740,-480.0,0.00020547,2]
[380144163,1755573054750,-551.50257906,0.00020547,2]
[380144164,1755573054760,-887.99,0.00020547,2]
[380144165,1755573054771,-458.534596,0.00020547,2]
[380144166,1755573054781,-480.0,0.00020547,2]
[380144167,1755573054790,-575.58,0.00020547,2]
[380144168,1755573054799,-1987.21,0.00020547,2]
[380144169,1755573054808,-455.408369,0.00020547,2]
[380144170,1755573054817,-151.0,0.00020547,2]
[380144171,1755573054827,-455.408369,0.00020547,2]
[380144172,1755573054836,-458.534596,0.00020547,2]
[380144173,1755573054845,-6405.06,0.00020547,2]
[380144174,1755573054855,-860.52,0.00020547,2]
[380144175,1755573054864,-810.59,0.00020547,2]
[380144176,1755573054873,-728.69,0.00020547,2]
[380144177,1755573054882,-151.0,0.00020547,2]
[380144178,1755573054891,-690.18,0.00020547,2]
[380144179,1755573054901,-1039.74,0.00020547,2]
[380144180,1755573054911,-480.0,0.00020547,2]
[380144181,1755573054920,-480.0,0.00020547,2]
[380144182,1755573054930,-2436.12,0.00020547,2]
[380144183,1755573054939,-480.0,0.00020547,2]
[380144184,1755573054948,-941.31,0.00020547,2]
[380144185,1755573055021,-547.86,0.00020547,2]
[380144186,1755573055031,-653.19,0.00020547,2]
[380144187,1755573055040,-2633.5,0.00020547,2]
[380144188,1755573055049,-712.5,0.00020547,2]
[380144189,1755573055058,-3869.68,0.00020547,2]
[380144190,1755573055067,-480.0,0.00020547,2]
[380144191,1755573055076,-480.0,0.00020547,2]
[380144192,1755573055087,-491.22,0.00020547,2]
[380144193,1755573055096,-1131.68,0.00020547,2]
[380144194,1755573055105,-150000.0,0.00020547,2]
[380144195,1755573055115,-70909.14428483,0.00020547,2]
[380144196,1755573055125,-159.266538,0.00020548,2]
[380144197,1755573055135,-151.0,0.00020548,2]
[380144198,1755573055144,-231.9125191,0.00020548,2]
[380144199,1755573055154,-500.0,0.00020548,2]
[380144200,1755573055163,-151.0,0.00020548,2]
[380144201,1755573055173,-461.0,0.00020548,2]
[380144202,1755573055182,-214.86601324,0.00020548,2]
[380144203,1755573055192,-151.0,0.00020548,2]
[380144204,1755573055201,-151.0,0.00020548,2]
[380144205,1755573055210,-198.91617106,0.00020548,2]
[380144206,1755573055220,-151.0,0.00020548,2]
[380144207,1755573055229,-151.0,0.00020548,2]
[380144208,1755573055239,-152.83772289,0.00020548,2]
[380144209,1755573055249,-199.40060872,0.00020548,2]
[380144210,1755573055259,-500.0,0.00020548,2]
[380144211,1755573055269,-7628.85125584,0.00020585,2]
[380144212,1755573055279,-453.01,0.00020697,2]
[380144213,1755573055288,-170.0,0.0002071,2]
[380144214,1755573055301,-560.18484352,0.00020725,2]
[380144215,1755573055319,-242.0,0.00020739,2]
[380144216,1755573055333,-953.0,0.00020745,2]
[380144217,1755573055344,-969.5,0.00020767,15]
[380144218,1755573055355,-953.0,0.00020791,2]
[380144219,1755573055366,-151.0,0.00020791,2]
[380144220,1755573055381,-1059.201726,0.00020791,2]
[380144221,1755573055392,-1059.201726,0.00020791,2]
[380144222,1755573055401,-151.0,0.00020791,2]
[380144223,1755573055412,-261.80758,0.00020791,2]
[380144224,1755573055423,-151.0,0.00020791,2]
[380144225,1755573055432,-151.0,0.00020791,2]
[380144226,1755573055442,-151.0,0.00020791,2]
[380144227,1755573055454,-189.718564,0.00020793,2]
[380144228,1755573055463,-480.0,0.00020821,2]
[380144229,1755573055474,-480.0,0.00020821,2]
[380144230,1755573055483,-480.0,0.00020821,2]
[380144231,1755573055493,-480.0,0.00020821,2]
[380144232,1755573055503,-6716.15,0.00020821,2]
[380144233,1755573055513,-534.48,0.00020821,2]
[380144234,1755573055522,-1628.01,0.00020821,2]
[380144235,1755573055533,-480.0,0.00020821,2]
[380144236,1755573055543,-164.930769,0.00020821,2]
[380144237,1755573055553,-164.930769,0.00020821,2]
[380144238,1755573055570,-480.0,0.00020821,2]
[380144239,1755573055590,-517.72,0.00020821,2]
[380144240,1755573055599,-480.0,0.00020821,2]
[380144241,1755573055621,-271.584211,0.00020821,2]
[380144242,1755573055640,-480.0,0.00020821,2]
[380144243,1755573055657,-707.0,0.00020821,2]
[380144244,1755573055677,-151.0,0.00020821,2]
[380144245,1755573055695,-689.35,0.00020821,2]
[380144246,1755573055712,-480.0,0.00020821,2]
[380144247,1755573055730,-480.0,0.00020821,2]
[380144248,1755573055744,-151.0,0.00020821,2]
[380144249,1755573055760,-480.0,0.00020821,2]
[380144250,1755573055778,-480.0,0.00020821,2]
[380144251,1755573055798,-151.0,0.00020821,2]
[380144252,1755573055811,-2793.31,0.00020821,2]
[380144253,1755573055828,-480.0,0.00020821,2]
[380144254,1755573055845,-480.0,0.00020821,2]
[380144255,1755573055860,-480.0,0.00020821,2]
[380144256,1755573055873,-151.0,0.00020821,2]